fUSD/lending_fUSD_20260314
["ID","MTS","AMOUNT","RATE_DAILY","PERIOD"]
[408343549,1773466247124,-655.434555,0.00022533,2]
[408343550,1773466247134,-151.0,0.00022533,2]
[408343551,1773466247143,-504.799032,0.00022564,2]
[408343552,1773466247151,-1408.8290773,0.00022564,2]
[408343553,1773466247161,-589.96,0.0002261,2]
[408343554,1773466247170,-172.26,0.00022682,2]
[408343555,1773466247179,-1837.1274641,0.00022704,2]
[408343556,1773466247188,-337.1036744,0.00022719,2]
[408343557,1773466247198,-357.6762453,0.00022833,2]
[408343558,1773466247207,-166.66,0.00022837,2]
[408343559,1773466247217,-585.1494582,0.00022961,2]
[408343560,1773466247225,-578.58078814,0.00023,2]
[408343561,1773466247340,-425.17621539,0.00023,2]
[408343562,1773466247349,-5043.72394598,0.00023015,2]
[408343563,1773466247359,-9216.66584626,0.00023121,2]
[408343564,1773466247368,-3930.35,0.00023207,2]
[408343565,1773466247379,-166.67,0.00023229,2]
[408343566,1773466247390,-370.91026638,0.00023381,2]
[408343567,1773466247400,-7199.28436091,0.00023402,2]
[408343568,1773466247411,-444.58999998,0.00023402,2]
[408343569,1773466247423,-2191.81557533,0.00023402,2]
[408343570,1773466247433,-405.71056606,0.00023402,2]
[408343571,1773466247442,-46.57385861,0.00023414,2]
[408343572,1773466312647,4700.04,0.00032,120]
[408343573,1773466368822,-2243.2828,0.000193,2]
[408343574,1773466368847,-4288.7172,0.000193,2]
[408343576,1773466482761,166.13,0.00010643,2]
[408343577,1773466482955,166.13,0.00012772,2]
[408343583,1773466675631,500.0,0.00029563,120]
[408343584,1773466684718,4042.96132082,0.00024,30]
[408343585,1773466686842,500.0,0.00029563,120]
[408343586,1773466865382,222.53008,0.000182,7]
[408343587,1773466874057,308.46140861,0.00029999,120]
[408343588,1773466917623,281.508391,0.00017782,7]
[408343589,1773466920693,500.0,0.00032776,120]
[408343590,1773466931189,500.0,0.00032776,120]
[408343593,1773467143623,808.40415,0.0003287,120]
[408343594,1773467172576,500.0,0.00029411,120]
[408343595,1773467182667,500.0,0.00029411,120]
[408343597,1773467411783,500.0,0.00029411,120]
[408343598,1773467422130,500.0,0.00029411,120]
[408343599,1773467423403,2315.256268,0.00014099,2]
[408343612,1773467432134,-159.63859055,0.0001417,2]
[408343613,1773467432144,-600.0,0.00014178,2]
[408343615,1773467432154,-723.26294005,0.00014186,2]
[408343617,1773467432165,-550.68566717,0.00014186,2]
[408343619,1773467432175,-116.28103797,0.00014186,2]
[408343631,1773467432380,-150.71896203,0.00014186,2]
[408343633,1773467432390,-115.66118674,0.0001427,2]
[408343635,1773467432402,-384.33881326,0.0001427,2]
[408343637,1773467432411,-1200.0,0.00014278,2]
[408343639,1773467432421,-5000.0,0.00014279,2]
[408343641,1773467432431,-600.0,0.00014288,2]
[408343642,1773467432440,-200.57958091,0.00014324,2]
[408343644,1773467432449,-300.0,0.0001433,2]
[408343646,1773467432459,-300.0,0.0001433,2]
[408343648,1773467432469,-1907.72509536,0.00014331,2]
[408343650,1773467432478,-500.0,0.0001435,2]
[408343652,1773467432487,-500.0,0.0001435,2]
[408343654,1773467432497,-300.0,0.00014424,2]
[408343656,1773467432506,-252.14460144,0.00014461,2]
[408343658,1773467432516,-334.30991642,0.00014508,2]
[408343659,1773467432525,-1200.0,0.00014596,2]
[408343660,1773467432536,-3368.46624355,0.00014597,2]
[408343661,1773467432545,-151.0,0.00014634,2]
[408343662,1773467432555,-151.0,0.00014634,2]
[408343663,1773467432564,-300.0,0.00014698,2]
[408343664,1773467432575,-300.0,0.00014698,2]
[408343665,1773467432584,-159.64,0.00014716,2]
[408343666,1773467432593,-1318.16,0.00014814,2]
[408343667,1773467432603,-417.67,0.00014889,2]
[408343668,1773467432612,-166.13,0.000149,2]
[408343669,1773467432621,-1918.2,0.00014955,2]
[408343670,1773467432630,-166.66,0.00015263,2]
[408343671,1773467432640,-1918.2,0.00015329,2]
[408343672,1773467432649,-600.0,0.00015587,2]
[408343673,1773467432659,-300.0,0.00015587,2]
[408343674,1773467432669,-159.63859053,0.00015636,2]
[408343675,1773467432679,-600.0,0.00015677,2]
[408343676,1773467432688,-376.28053339,0.00015677,2]
[408343677,1773467432698,-302.35737128,0.00015677,2]
[408343678,1773467432707,-500.0,0.00015677,2]
[408343679,1773467432717,-420.0,0.00015694,2]
[408343680,1773467432727,-300.0,0.00015694,2]
[408343681,1773467432738,-300.41884499,0.00015697,2]
[408343682,1773467432747,-5000.0,0.00015697,2]
[408343683,1773467432757,-1918.2,0.00015703,2]
[408343684,1773467432766,-1680.0,0.00015706,2]
[408343685,1773467432775,-166.66,0.00015766,2]
[408343686,1773467432784,-4213.39930839,0.00015827,2]
[408343687,1773467432794,-300.0,0.00015827,2]
[408343688,1773467432803,-500.0,0.00015827,2]
[408343689,1773467432812,-600.0,0.00015867,2]
[408343690,1773467432821,-250.0,0.00015867,2]
[408343691,1773467432831,-159.64,0.00015942,2]
[408343692,1773467432840,-877.0,0.00015981,2]
[408343693,1773467432852,-550.0,0.00016076,2]
[408343694,1773467432864,-1918.2,0.00016077,2]
[408343695,1773467432874,-500.0,0.00016091,2]
[408343696,1773467432883,-159.0,0.00016091,2]
[408343697,1773467432895,-420.0,0.00016091,2]
[408343698,1773467432905,-166.66,0.0001627,2]
[408343699,1773467432914,-202.16392726,0.0001638,2]
[408343700,1773467432925,-151.0,0.0001638,2]
[408343701,1773467432936,-154.25979387,0.0001638,2]
[408343702,1773467432946,-250.45673482,0.000164,2]
[408343703,1773467432955,-1918.2,0.00016451,2]
[408343704,1773467432964,-500.64031486,0.00016632,2]
[408343705,1773467432975,-237.45061676,0.00016632,2]
[408343706,1773467433121,-500.0,0.00016632,2]
[408343707,1773467433136,-500.0,0.000167,2]
[408343708,1773467433146,-229.83813791,0.000167,2]
[408343709,1773467433156,-500.0,0.000167,2]
[408343710,1773467433166,-166.66,0.00016774,2]
[408343711,1773467433175,-166.13,0.00017029,2]
[408343712,1773467433184,-159.63859053,0.00017101,2]
[408343713,1773467433194,-166.94,0.00017126,2]
[408343714,1773467433204,-159.64,0.00017169,2]
[408343715,1773467433214,-5117.76211368,0.00017173,2]
[408343716,1773467433223,-587.0,0.00017188,2]
[408343717,1773467433233,-935.0,0.00017201,2]
[408343718,1773467433242,-39173.4091202,0.00017224,2]
[408343719,1773467433255,-76366.23885448,0.00017224,2]
[408343720,1773467433322,-0.63059337,0.00017224,2]
[408343721,1773467433334,-585.43242494,0.00017224,2]
[408343722,1773467433345,-750.0,0.00017224,2]
[408343723,1773467433376,-609.8984744,0.00017224,2]
[408343724,1773467433387,-1976.99262057,0.00017224,2]
[408343728,1773467438232,-1655.03023172,0.00017224,2]
[408343729,1773467438291,-2020.0,0.00017224,2]
[408343730,1773467438303,-1277.27139037,0.00017224,2]
[408343875,1773467440399,-1425.82817633,0.00017224,2]
[408343887,1773467440512,-1849.75012734,0.00017224,2]
[408343920,1773467440951,-56706.93798628,0.00017224,2]
[408343921,1773467440961,-1000.0,0.00017248,2]
[408343922,1773467440970,-2351.0,0.00017276,2]
[408343923,1773467440980,-166.66,0.00017278,2]
[408343924,1773467440990,-587.0,0.00017616,2]
[408343925,1773467440999,-166.66,0.00017782,2]
[408343926,1773467441009,-500.0,0.00017785,2]
[408343927,1773467441019,-500.0,0.00017785,2]
[408343928,1773467441029,-1500.0,0.00017796,2]
[408343929,1773467441040,-385.13153006,0.000179,2]
[408343930,1773467441049,-338.46702539,0.000179,2]
[408343931,1773467441059,-1441.4,0.00018003,2]
[408343932,1773467441069,-1500.0,0.00018156,2]
[408343933,1773467441079,-1215.19575134,0.00018344,2]
[408343934,1773467441092,-159.64,0.00018395,2]
[408343935,1773467441102,-670.0,0.00018407,2]
[408343936,1773467441112,-2000.0,0.00018814,2]
[408343937,1773467441122,-823.0,0.00018824,2]
[408343938,1773467441132,-2000.0,0.00018912,2]
[408343939,1773467441141,-3292.0,0.00019004,2]
[408343940,1773467441151,-166.13,0.00019158,2]
[408343941,1773467441161,-126.62259084,0.00019286,2]
[408343942,1773467441174,-669.37740916,0.00019286,2]
[408343943,1773467441184,-500.0,0.00019445,2]
[408343944,1773467441194,-500.0,0.00019445,2]
[408343945,1773467441203,-500.0,0.00019445,2]
[408343946,1773467441213,-500.0,0.00019445,2]
[408343947,1773467441223,-500.0,0.00019445,2]
[408343948,1773467441233,-500.0,0.00019445,2]
[408343949,1773467441243,-500.0,0.00019445,2]
[408343950,1773467441253,-500.0,0.00019445,2]
[408343951,1773467441263,-500.0,0.00019445,2]
[408343952,1773467441272,-500.0,0.00019445,2]
[408343953,1773467441282,-500.0,0.00019445,2]
[408343954,1773467441296,-500.0,0.00019445,2]
[408343955,1773467441306,-500.0,0.00019445,2]
[408343956,1773467441316,-500.0,0.00019445,2]
[408343957,1773467441326,-500.0,0.00019445,2]
[408343958,1773467441335,-500.0,0.00019445,2]
[408343959,1773467441345,-500.0,0.00019445,2]
[408343960,1773467441355,-500.0,0.00019445,2]
[408343961,1773467441364,-500.0,0.00019445,2]
[408343962,1773467441374,-500.0,0.00019445,2]
[408343963,1773467441384,-500.0,0.00019445,2]
[408343964,1773467441395,-500.0,0.00019445,2]
[408343965,1773467441404,-500.0,0.00019445,2]
[408343966,1773467441414,-500.0,0.00019445,2]
[408343967,1773467441424,-500.0,0.00019445,2]
[408343968,1773467441435,-500.0,0.00019445,2]
[408343969,1773467441446,-500.0,0.00019445,2]
[408343970,1773467441456,-500.0,0.00019445,2]
[408343971,1773467441466,-500.0,0.00019445,2]
[408343972,1773467441477,-500.0,0.00019445,2]
[408343973,1773467441487,-462.89528934,0.00019445,2]
[408343974,1773467441498,-5008.72850102,0.00019446,2]
[408343975,1773467441507,-7763.19186372,0.00019563,2]
[408343976,1773467441520,-3779.51600893,0.00019563,2]
[408343979,1773467443283,-541.39864331,0.00019563,2]
[408343980,1773467443298,-390.39328053,0.00019563,2]
[408343981,1773467443340,-2606.705,0.00019563,2]
[408343985,1773467446121,-5066.26959986,0.00019563,2]
[408343986,1773467446180,-2863.08,0.00019563,2]
[408343987,1773467446238,-5706.00362237,0.00019563,2]
[408343989,1773467486232,622.08842836,0.0003287,120]
[408343990,1773467489197,216.71330358,0.0003287,120]
[408343995,1773467661340,500.0,0.0002998,120]
[408343996,1773467830546,756.5585,0.0003287,120]
[408343997,1773467887375,500.0,0.00031174,120]
[408343999,1773468004069,150.0,0.00023845,30]
[408344000,1773468031790,500.0,0.00032876,120]
[408344004,1773468115020,500.0,0.00029785,120]
[408344005,1773468124603,500.0,0.00029785,120]
[408344043,1773468466201,25797.02675569,0.00032876,120]
[408344044,1773468530215,1040.0,0.00024,30]
[408344045,1773468609200,-703.42753116,0.0001439,2]
[408344046,1773468609221,-269.0,0.0001439,2]
[408344047,1773468609241,-300.0,0.0001439,2]
[408344048,1773468609261,-250.0,0.0001439,2]
[408344049,1773468609280,-188.95278603,0.0001439,2]
[408344050,1773468609300,-250.0,0.00014423,2]
[408344051,1773468609320,-300.0,0.00014432,2]
[408344052,1773468609339,-3815.6,0.00014567,2]
[408344053,1773468609362,-242.0,0.00014999,2]
[408344054,1773468609382,-1200.0,0.00014999,2]
[408344055,1773468609402,-250.0,0.00015,2]
[408344056,1773468609422,-1424.92383489,0.00015,2]
[408344057,1773468609442,-806.09584792,0.00015,2]
[408344058,1773468617203,-600.0,0.0001439,2]
[408344059,1773468617227,-310.73154264,0.00014411,2]
[408344060,1773468617249,-387.94943951,0.00014432,2]
[408344061,1773468617270,-7220.60651143,0.00015,2]
[408344077,1773468631304,-183.76,0.0001532,2]
[408344079,1773468631316,-250.0,0.00015829,2]
[408344081,1773468631325,-300.0,0.00015829,2]
[408344084,1773468631336,-600.0,0.00015829,2]
[408344086,1773468631345,-434.97932229,0.00015829,2]
[408344088,1773468631355,-250.0,0.00015829,2]
[408344090,1773468631365,-300.0,0.00015959,2]
[408344092,1773468631375,-500.0,0.0001596,2]
[408344094,1773468631385,-507.60160384,0.00016,2]
[408344096,1773468631395,-3410.96860433,0.000162,5]
[408344099,1773468631410,-1589.04103324,0.000162,5]
[408344101,1773468631421,-186.26012149,0.00016243,2]
[408344102,1773468631430,-425.11630711,0.00016243,2]
[408344103,1773468631441,-74.88369289,0.00016243,2]
[408344104,1773468631451,-500.46927556,0.00016243,2]
[408344105,1773468631460,-500.0,0.00016243,2]
[408344106,1773468631470,-9.41818578,0.0001635,2]
[408344107,1773468631482,-153.921297,0.0001635,2]
[408344108,1773468631491,-1076.298703,0.00016499,2]
[408344109,1773468631508,-603.701297,0.00016499,2]
[408344110,1773468631519,-656.13,0.00016945,2]
[408344111,1773468631529,-240.59170587,0.00016973,2]
[408344112,1773468631538,-122.69379369,0.0001699,2]
[408344113,1773468631553,-500.0,0.0001699,2]
[408344115,1773468631564,-6824.883185,0.0001699,2]
[408344117,1773468631576,-7717.91903813,0.0001699,2]
[408344119,1773468631586,-300.0,0.00017,2]
[408344121,1773468631595,-1486.54753584,0.00017,2]
[408344123,1773468631607,-4150.24869923,0.00017,2]
[408344126,1773468631622,-45615.9835654,0.00017,2]
[408344127,1773468631632,-510.0,0.00017076,2]
[408344128,1773468631642,-22945.02,0.00017234,2]
[408344129,1773468631652,-72.20947912,0.00017386,2]
[408344130,1773468631665,-2753.16052088,0.00017386,2]
[408344131,1773468631675,-165.72,0.00017455,2]
[408344132,1773468631684,-215.303632,0.00017527,2]
[408344133,1773468631694,-500.0,0.00017685,2]
[408344134,1773468631704,-200.0,0.00017856,2]
[408344135,1773468631714,-500.0,0.00017882,2]
[408344136,1773468631724,-284.21,0.00017927,2]
[408344137,1773468631734,-811.66,0.00018028,2]
[408344138,1773468631743,-2351.0,0.00018149,2]
[408344139,1773468631753,-1000.0,0.00018712,2]
[408344140,1773468631762,-1722.66,0.0001895,2]
[408344141,1773468631772,-150.0,0.00018971,2]
[408344142,1773468631781,-1000.0,0.00018986,2]
[408344143,1773468631791,-350.0,0.00019,2]
[408344144,1773468631801,-183.76,0.0001915,2]
[408344145,1773468631815,-336.83,0.00019222,2]
[408344146,1773468631824,-1000.0,0.0001926,2]
[408344147,1773468631834,-504.78327586,0.00019391,2]
[408344148,1773468631844,-3379.2303203,0.00019391,2]
[408344149,1773468631853,-539.2691349,0.00019391,2]
[408344150,1773468631863,-1002.08186317,0.00019461,2]
[408344151,1773468631872,-1826.207082,0.00019462,2]
[408344152,1773468631884,-487.0242411,0.00019462,2]
[408344153,1773468631900,-336.37939,0.00019462,2]
[408344154,1773468637313,-401.616215,0.00019462,2]
[408344155,1773468637324,-12947.3195719,0.00019462,2]
[408344156,1773468637337,-1000.0,0.00019534,2]
[408344157,1773468637346,-263.39068767,0.00019563,2]
[408344158,1773468637356,-151.0,0.00019563,2]
[408344159,1773468637365,-159.64,0.00019621,2]
[408344160,1773468637374,-314.7735,0.00019644,2]
[408344161,1773468637384,-1000.0,0.00019808,2]
[408344162,1773468637393,-4605.98590233,0.0001987,2]
[408344163,1773468637403,-509.83418179,0.00019873,2]
[408344164,1773468637412,-501.06395373,0.00019873,2]
[408344165,1773468637422,-401.58396023,0.00019873,2]
[408344166,1773468637431,-506.39079374,0.00019873,2]
[408344167,1773468637440,-502.66188252,0.00019873,2]
[408344168,1773468637450,-500.0,0.00019873,2]
[408344169,1773468637459,-500.0,0.00019873,2]
[408344170,1773468637468,-500.0,0.00019873,2]
[408344171,1773468637478,-559.64293504,0.00019873,2]
[408344172,1773468637487,-1722.66,0.00019898,2]
[408344173,1773468637497,-424.78177394,0.000199,2]
[408344174,1773468637506,-2500.0,0.000199,2]
[408344175,1773468637518,-9930.62203871,0.000199,2]
[408344176,1773468637530,-4051.44903996,0.000199,2]
[408344177,1773468637539,-825.49456721,0.000199,2]
[408344179,1773468637549,-8547.2717813,0.000199,2]
[408344181,1773468637559,-625.58473991,0.000199,2]
[408344183,1773468637569,-3292.0,0.00019964,2]
[408344185,1773468637579,-1000.0,0.0001997,2]
[408344187,1773468637587,-500.0,0.00019973,2]
[408344189,1773468637596,-422.82893406,0.00019973,2]
[408344191,1773468637606,-500.0,0.00019973,2]
[408344192,1773468637615,-502.29775032,0.00019973,2]
[408344195,1773468637624,-385.02017111,0.0001999,2]
[408344197,1773468637634,-690.01041515,0.00019999,2]
[408344199,1773468637643,-506.60290067,0.00019999,2]
[408344201,1773468637652,-500.0,0.00019999,2]
[408344203,1773468637662,-500.0,0.00019999,2]
[408344206,1773468637671,-558.66690979,0.00019999,2]
[408344210,1773468637681,-500.0,0.00019999,2]
[408344213,1773468637690,-500.0,0.00019999,2]
[408344217,1773468637702,-500.0,0.00019999,2]
[408344219,1773468637711,-154.18560746,0.00019999,2]
[408344223,1773468637720,-500.0,0.0002,2]
[408344225,1773468637729,-151.0,0.0002,2]
[408344228,1773468637738,-174.61919141,0.0002,2]
[408344230,1773468637747,-500.0,0.0002,2]
[408344232,1773468637756,-200.0,0.0002,2]
[408344234,1773468637765,-500.0,0.0002,2]
[408344236,1773468637774,-500.0,0.0002,2]
[408344237,1773468637783,-500.0,0.0002,2]
[408344240,1773468637793,-500.0,0.0002,2]
[408344241,1773468637802,-500.0,0.0002,2]
[408344244,1773468637811,-500.0,0.0002,2]
[408344246,1773468637821,-500.0,0.0002,2]
[408344248,1773468637830,-500.0,0.0002,2]
[408344249,1773468637839,-500.0,0.0002,2]
[408344251,1773468637849,-500.0,0.0002,2]
[408344254,1773468637858,-277.35679052,0.0002,2]
[408344256,1773468637867,-500.0,0.0002,2]
[408344258,1773468637876,-500.0,0.0002,2]
[408344259,1773468637888,-500.0,0.0002,2]
[408344261,1773468637898,-69.97716636,0.0002,2]
[408344264,1773468637910,-333.43992095,0.0002,2]
[408344267,1773468637928,-96.58291269,0.0002,2]
[408344269,1773468637937,-207.95982437,0.0002,2]
[408344271,1773468637951,-292.04017563,0.0002,2]
[408344273,1773468637961,-500.0,0.0002,2]
[408344275,1773468637970,-500.0,0.0002,2]
[408344277,1773468637980,-500.0,0.0002,2]
[408344279,1773468637989,-500.0,0.0002,2]
[408344281,1773468637998,-500.0,0.0002,2]
[408344283,1773468638007,-500.0,0.0002,2]
[408344285,1773468638016,-194.0,0.0002,2]
[408344287,1773468638025,-200.0,0.0002,2]
[408344289,1773468638034,-200.0,0.0002,2]
[408344291,1773468638044,-72390.81271348,0.0002,2]
[408345197,1773468648058,10130.45940727,0.0001429,7]
[408345466,1773468686454,558.83207468,0.0003287,120]
[408345476,1773469011454,20023.7,0.00032876,120]
[408345477,1773469039726,973.02173341,0.000328,120]
[408345478,1773469146601,177.04,9.453e-05,2]
[408345479,1773469146821,177.04,9.951e-05,2]
[408345480,1773469147029,177.04,0.00010448,2]
[408345481,1773469147435,177.04,0.00010946,2]
[408345482,1773469147650,177.04,0.00011443,2]
[408345483,1773469147863,177.04,0.00011941,2]
[408345484,1773469148087,177.04,0.00012438,2]
[408345485,1773469148280,177.04,0.00012936,2]
[408345486,1773469148474,177.04,0.00013433,2]
[408345487,1773469148683,177.04,0.00013931,2]
[408345494,1773469544987,3829.0,0.000328,120]
[408345496,1773469660007,500.0,0.0003287,120]
[408345497,1773469782855,-177.04,0.00014429,2]
[408345498,1773469782875,-250.0,0.00014429,2]
[408345499,1773469782900,-269.0,0.00014429,2]
[408345500,1773469782922,-250.0,0.00014642,2]
[408345501,1773469782941,-177.04,0.00014926,2]
[408345502,1773469782961,-249.92,0.00015,2]
[408345503,1773469796589,150.0,0.00031233,120]
[408345504,1773469803297,10000.0,0.00032877,120]
[408345505,1773469804933,150.0,0.00031233,120]
[408345506,1773469810790,-0.08,0.00015,2]
[408345507,1773469810810,-274.0,0.00015,2]
[408345514,1773469831511,-250.0,0.00015212,2]
[408345515,1773469831521,-177.04,0.00015424,2]
[408345516,1773469831532,-166.12928053,0.00015771,2]
[408345517,1773469831542,-305.70426919,0.00015871,2]
[408345518,1773469831552,-250.0,0.00015871,2]
[408345519,1773469831562,-177.04,0.00015921,2]
[408345520,1773469831571,-686.86999607,0.00016336,2]
[408345521,1773469831582,-298.97434104,0.00016336,2]
[408345522,1773469831593,-86.93363989,0.00016336,2]
[408345523,1773469831603,-177.04,0.00016419,2]
[408345524,1773469831612,-250.0,0.000165,2]
[408345525,1773469831622,-195.0,0.000165,2]
[408345526,1773469831631,-195.0,0.000165,2]
[408345528,1773469831641,-195.0,0.000165,2]
[408345530,1773469831650,-195.0,0.000165,2]
[408345532,1773469831660,-256.31880558,0.000165,2]
[408345534,1773469831669,-2500.0,0.000165,2]
[408345536,1773469831679,-2500.0,0.000165,2]
[408345538,1773469831689,-2182.63242901,0.000165,2]
[408345571,1773469833056,-317.36757099,0.000165,2]
[408345572,1773469833065,-2500.0,0.000165,2]
[408345573,1773469833075,-2500.0,0.000165,2]
[408345574,1773469833086,-200.0,0.000165,2]
[408345575,1773469833095,-200.0,0.000165,2]
[408345576,1773469833105,-253.07824233,0.000165,2]
[408345577,1773469833114,-177.04,0.00016916,2]
[408345578,1773469833124,-300.0,0.00017,2]
[408345579,1773469833134,-177.04,0.00017414,2]
[408345580,1773469833143,-166.66,0.00017504,2]
[408345581,1773469833152,-168.25,0.00017637,2]
[408345582,1773469833161,-2000.0,0.00017645,2]
[408345583,1773469833171,-1077.11,0.00017667,2]
[408345584,1773469833180,-200.0,0.00017688,2]
[408345585,1773469833189,-166.12928052,0.00017772,2]
[408345586,1773469833198,-1200.0,0.00017807,2]
[408345587,1773469833207,-804.05982341,0.00017808,2]
[408345588,1773469833216,-166.66,0.00017872,2]
[408345589,1773469833226,-177.04,0.00017911,2]
[408345590,1773469833235,-300.0,0.00018108,2]
[408345591,1773469833244,-1077.11,0.00018109,2]
[408345592,1773469833254,-166.66,0.00018241,2]
[408345593,1773469833263,-177.04,0.00018409,2]
[408345594,1773469833272,-1218.56,0.00018425,2]
[408345595,1773469833281,-1077.11,0.00018551,2]
[408345596,1773469833291,-166.66,0.00018609,2]
[408345597,1773469833300,-177.04,0.00018906,2]
[408345598,1773469833309,-166.66,0.00018978,2]
[408345599,1773469833319,-1077.11,0.00018992,2]
[408345600,1773469833328,-350.0,0.00019,2]
[408345601,1773469833338,-200.0,0.00019129,2]
[408345602,1773469833347,-151.0,0.00019129,2]
[408345603,1773469833357,-151.0,0.00019129,2]
[408345604,1773469833366,-154.4363437,0.00019129,2]
[408345605,1773469833375,-151.0,0.00019129,2]
[408345606,1773469833384,-151.0,0.00019129,2]
[408345607,1773469833393,-151.0,0.00019129,2]
[408345608,1773469833402,-151.0,0.00019129,2]
[408345609,1773469833412,-151.0,0.00019129,2]
[408345610,1773469833421,-154.71385397,0.00019129,2]
[408345611,1773469833431,-5011.89,0.0001914,2]
[408345612,1773469833441,-2000.0,0.000192,2]
[408345613,1773469833451,-500.90256405,0.000192,2]
[408345614,1773469833460,-329.97671563,0.000192,2]
[408345615,1773469833470,-504.38182692,0.000192,2]
[408345616,1773469833479,-500.0,0.000192,2]
[408345617,1773469833488,-506.42760695,0.000192,2]
[408345618,1773469833497,-512.19584069,0.000192,2]
[408345619,1773469833506,-1000.0,0.0001926,2]
[408345620,1773469833517,-166.66,0.00019346,2]
[408345621,1773469833526,-1077.11,0.00019434,2]
[408345622,1773469833536,-1680.0,0.00019529,2]
[408345623,1773469833545,-1000.0,0.00019534,2]
[408345624,1773469833554,-166.12928052,0.00019773,2]
[408345625,1773469833564,-1000.0,0.000198,2]
[408345626,1773469833573,-8490.9072,0.000198,2]
[408345627,1773469833583,-4402.2893,0.000198,2]
[408345628,1773469833592,-4170.37942987,0.000198,2]
[408345629,1773469833602,-8937.55983483,0.000198,2]
[408345630,1773469833611,-2500.0,0.000198,2]
[408345631,1773469833620,-4145.38731207,0.000198,2]
[408345632,1773469833630,-1000.0,0.00019808,2]
[408345633,1773469833639,-2000.0,0.00019851,2]
[408345634,1773469833649,-2624.8998572,0.00019863,2]
[408345635,1773469833660,-197.79386672,0.00019873,2]
[408345636,1773469833671,-500.0,0.00019873,2]
[408345637,1773469833680,-500.0,0.00019873,2]
[408345638,1773469833689,-500.0,0.00019873,2]
[408345639,1773469833699,-312.76,0.0001989,3]
[408345640,1773469833710,-483.48,0.00019899,2]
[408345641,1773469833719,-500.0,0.00019899,2]
[408345642,1773469833730,-316.56332864,0.00019899,2]
[408345643,1773469833739,-501.44092884,0.00019899,2]
[408345644,1773469833749,-500.0,0.00019899,2]
[408345645,1773469833759,-500.0,0.00019899,2]
[408345646,1773469833769,-500.0,0.00019899,2]
[408345647,1773469833778,-500.0,0.00019899,2]
[408345648,1773469833788,-500.0,0.00019899,2]
[408345649,1773469833797,-500.0,0.00019899,2]
[408345650,1773469833806,-500.0,0.00019899,2]
[408345651,1773469833976,-500.0,0.00019899,2]
[408345652,1773469833986,-500.0,0.00019899,2]
[408345653,1773469833997,-500.0,0.00019899,2]
[408345654,1773469834010,-500.0,0.00019899,2]
[408345655,1773469834019,-500.0,0.00019899,2]
[408345656,1773469834029,-500.0,0.00019899,2]
[408345657,1773469834041,-500.0,0.00019899,2]
[408345658,1773469834050,-600.70115341,0.00019899,2]
[408345659,1773469834061,-500.0,0.00019899,2]
[408345660,1773469834071,-1844.6226,0.000199,2]
[408345661,1773469834080,-241407.28711784,0.000199,2]
[408345662,1773469834093,-410.55372032,0.000199,2]
[408345663,1773469834109,-49749.78758482,0.000199,2]
[408345664,1773469834120,-2649.85668432,0.000199,2]
[408345665,1773469834132,-29194.90577756,0.000199,2]
[408345666,1773469834145,-5610.18709977,0.000199,2]
[408345667,1773469834280,-535.84472265,0.000199,2]